fUSD/lending_fUSD_20241227
["ID","MTS","AMOUNT","RATE_DAILY","PERIOD"]
[346782785,1735285841862,-10258.09,0.00012659,2]
[346782787,1735285841871,-1190.84,0.00012659,2]
[346782789,1735285841880,-500.0,0.00012659,2]
[346782791,1735285841891,-10742.26,0.00012659,2]
[346782793,1735285841900,-1737.53,0.00012659,2]
[346782795,1735285841909,-23534.79,0.00012659,2]
[346782797,1735285841918,-965.56,0.00012659,2]
[346782799,1735285841928,-500.0,0.00012659,2]
[346782801,1735285841937,-500.0,0.00012659,2]
[346782803,1735285841947,-1761.68,0.00012659,2]
[346782805,1735285841956,-500.0,0.00012659,2]
[346782807,1735285841965,-1230.92,0.00012659,2]
[346782809,1735285841974,-733.6,0.00012659,2]
[346782811,1735285841983,-2437.02,0.00012659,2]
[346782813,1735285841992,-500.0,0.00012659,2]
[346782815,1735285842001,-1489.07,0.00012659,2]
[346782817,1735285842010,-3754.38,0.00012659,2]
[346782819,1735285842020,-500.0,0.00012659,2]
[346782821,1735285842029,-1768.45,0.00012659,2]
[346782823,1735285842039,-1345.57,0.00012659,2]
[346782825,1735285842049,-500.0,0.0001266,2]
[346782827,1735285842059,-932.76,0.0001266,2]
[346782830,1735285842069,-585.24,0.0001266,2]
[346782832,1735285842078,-500.0,0.0001266,2]
[346782834,1735285842087,-500.0,0.0001266,2]
[346782835,1735285842097,-500.0,0.0001266,2]
[346782838,1735285842107,-500.0,0.0001266,2]
[346782840,1735285842117,-500.0,0.0001266,2]
[346782842,1735285842126,-500.0,0.0001266,2]
[346782843,1735285842135,-500.0,0.0001266,2]
[346782846,1735285842145,-500.0,0.0001266,2]
[346782848,1735285842155,-500.0,0.0001266,2]
[346782849,1735285842164,-504.18509343,0.0001266,2]
[346782851,1735285842174,-500.82530272,0.0001266,2]
[346782854,1735285842187,-500.0,0.0001266,2]
[346782856,1735285842196,-547.88743409,0.0001266,2]
[346782858,1735285842208,-500.0,0.0001266,2]
[346782860,1735285842218,-500.0,0.0001266,2]
[346782862,1735285842227,-500.0,0.0001266,2]
[346782864,1735285842237,-465.2205923,0.0001266,2]
[346782866,1735285842246,-502.42067536,0.0001266,2]
[346782868,1735285842256,-500.0,0.0001266,2]
[346782870,1735285842265,-500.0,0.0001266,2]
[346782872,1735285842275,-500.0,0.0001266,2]
[346782874,1735285842284,-628.60012734,0.0001266,2]
[346782876,1735285842294,-507.93224873,0.0001266,2]
[346782878,1735285842304,-500.0,0.0001266,2]
[346782880,1735285842313,-500.0,0.0001266,2]
[346782882,1735285842322,-500.0,0.0001266,2]
[346782884,1735285842332,-500.0,0.0001266,2]
[346782886,1735285842341,-500.0,0.0001266,2]
[346782888,1735285842351,-706.08,0.0001266,2]
[346782890,1735285842360,-502.16258159,0.0001266,2]
[346782892,1735285842370,-500.0,0.0001266,2]
[346782894,1735285842379,-500.0,0.0001266,2]
[346782896,1735285842389,-852.9,0.0001266,2]
[346782898,1735285842398,-500.0,0.0001266,2]
[346782900,1735285842407,-500.0,0.0001266,2]
[346782902,1735285842416,-500.0,0.0001266,2]
[346782904,1735285842429,-500.0,0.0001266,2]
[346782906,1735285842438,-500.0,0.0001266,2]
[346782908,1735285842448,-500.0,0.0001266,2]
[346782910,1735285842461,-500.0,0.0001266,2]
[346782912,1735285842475,-517.87495925,0.0001266,2]
[346782914,1735285842485,-500.0,0.0001266,2]
[346782916,1735285842494,-502.69955567,0.0001266,2]
[346782918,1735285842503,-500.0,0.0001266,2]
[346782920,1735285842513,-504.00984777,0.0001266,2]
[346782922,1735285842522,-500.0,0.0001266,2]
[346782924,1735285842531,-500.0,0.0001266,2]
[346782926,1735285842540,-500.0,0.0001266,2]
[346782928,1735285842550,-500.0,0.0001266,2]
[346782930,1735285842559,-505.58,0.0001266,2]
[346782932,1735285842569,-500.0,0.0001266,2]
[346782934,1735285842579,-500.0,0.0001266,2]
[346782936,1735285842588,-500.0,0.0001266,2]
[346782938,1735285842598,-500.0,0.0001266,2]
[346782939,1735285842607,-502.87757312,0.0001266,2]
[346782941,1735285842616,-504.6718782,0.0001266,2]
[346782943,1735285842626,-503.66870865,0.0001266,2]
[346782945,1735285842635,-500.0,0.0001266,2]
[346782947,1735285842644,-500.0,0.0001266,2]
[346782949,1735285842653,-506.63734908,0.0001266,2]
[346782951,1735285842663,-500.0,0.0001266,2]
[346782953,1735285842672,-518.9949157,0.0001266,2]
[346782955,1735285842684,-500.0,0.0001266,2]
[346782957,1735285842693,-804.19,0.0001266,2]
[346782959,1735285842702,-500.0,0.0001266,2]
[346782961,1735285842712,-500.0,0.0001266,2]
[346782964,1735285842722,-500.0,0.0001266,2]
[346782966,1735285842731,-500.0,0.0001266,2]
[346782967,1735285842744,-505.82,0.0001266,2]
[346782970,1735285842753,-500.0,0.0001266,2]
[346782972,1735285842763,-500.0,0.0001266,2]
[346782974,1735285842772,-500.0,0.0001266,2]
[346782976,1735285842783,-516.31,0.0001266,2]
[346782978,1735285842792,-500.0,0.0001266,2]
[346782980,1735285842801,-500.0,0.0001266,2]
[346782982,1735285842811,-500.0,0.0001266,2]
[346782984,1735285842821,-500.0,0.0001266,2]
[346782986,1735285842831,-500.0,0.0001266,2]
[346782988,1735285842840,-551.18,0.0001266,2]
[346782991,1735285842849,-500.0,0.0001266,2]
[346782993,1735285842858,-500.0,0.0001266,2]
[346782994,1735285842867,-500.0,0.0001266,2]
[346782995,1735285842876,-500.0,0.0001266,2]
[346782997,1735285842885,-500.0,0.0001266,2]
[346782999,1735285842894,-500.0,0.0001266,2]
[346783001,1735285842903,-500.0,0.0001266,2]
[346783004,1735285842912,-572.37,0.0001266,2]
[346783006,1735285842921,-500.0,0.0001266,2]
[346783008,1735285842931,-500.0,0.0001266,2]
[346783010,1735285842941,-500.0,0.0001266,2]
[346783012,1735285842949,-500.0,0.0001266,2]
[346783014,1735285842958,-500.0,0.0001266,2]
[346783016,1735285842967,-500.0,0.0001266,2]
[346783018,1735285842976,-500.0,0.0001266,2]
[346783019,1735285842985,-500.0,0.0001266,2]
[346783021,1735285842994,-500.0,0.0001266,2]
[346783023,1735285843004,-500.0,0.0001266,2]
[346783027,1735285843013,-500.0,0.0001266,2]
[346783030,1735285843023,-558.95,0.0001266,2]
[346783034,1735285843032,-500.0,0.0001266,2]
[346783038,1735285843041,-735.17,0.0001266,2]
[346783042,1735285843050,-500.0,0.0001266,2]
[346783046,1735285843059,-500.0,0.0001266,2]
[346783050,1735285843069,-500.0,0.0001266,2]
[346783053,1735285843078,-500.0,0.0001266,2]
[346783056,1735285843088,-500.0,0.0001266,2]
[346783059,1735285843097,-525.07,0.0001266,2]
[346783062,1735285843107,-500.0,0.0001266,2]
[346783064,1735285843117,-500.0,0.0001266,2]
[346783066,1735285843126,-511.69,0.0001266,2]
[346783069,1735285843135,-500.0,0.0001266,2]
[346783072,1735285843145,-806.74,0.0001266,2]
[346783075,1735285843154,-500.0,0.0001266,2]
[346783078,1735285843163,-500.0,0.0001266,2]
[346783080,1735285843173,-500.0,0.0001266,2]
[346783082,1735285843186,-500.0,0.0001266,2]
[346783084,1735285843195,-608.74,0.0001266,2]
[346783086,1735285843205,-500.0,0.0001266,2]
[346783088,1735285843214,-500.0,0.0001266,2]
[346783090,1735285843223,-211.36363632,0.0001266,2]
[346783092,1735285843233,-512.66623059,0.0001266,2]
[346783094,1735285843242,-500.0,0.0001266,2]
[346783096,1735285843251,-500.0,0.0001266,2]
[346783098,1735285843260,-500.0,0.0001266,2]
[346783100,1735285843271,-500.0,0.0001266,2]
[346783102,1735285843279,-500.0,0.0001266,2]
[346783104,1735285843288,-500.0,0.0001266,2]
[346783106,1735285843298,-500.0,0.0001266,2]
[346783108,1735285843308,-500.0,0.0001266,2]
[346783110,1735285843317,-344.2959914,0.0001266,2]
[346783112,1735285843326,-503.81907305,0.0001266,2]
[346783114,1735285843334,-500.0,0.0001266,2]
[346783116,1735285843343,-500.0,0.0001266,2]
[346783117,1735285843353,-500.0,0.0001266,2]
[346783119,1735285843362,-500.0,0.0001266,2]
[346783122,1735285843372,-501.09567685,0.0001266,2]
[346783124,1735285843382,-541.91,0.0001266,2]
[346783125,1735285843391,-500.0,0.0001266,2]
[346783127,1735285843401,-500.0,0.0001266,2]
[346783129,1735285843411,-808.56,0.0001266,2]
[346783131,1735285843421,-500.0,0.0001266,2]
[346783133,1735285843432,-500.0,0.0001266,2]
[346783135,1735285843442,-500.0,0.0001266,2]
[346783137,1735285843451,-500.0,0.0001266,2]
[346783139,1735285843461,-500.0,0.0001266,2]
[346783141,1735285843470,-512.24072535,0.0001266,2]
[346783143,1735285843480,-500.0,0.0001266,2]
[346783145,1735285843489,-500.0,0.0001266,2]
[346783147,1735285843499,-500.0,0.0001266,2]
[346783149,1735285843509,-500.0,0.0001266,2]
[346783151,1735285843518,-500.0,0.0001266,2]
[346783153,1735285843528,-500.0,0.0001266,2]
[346783155,1735285843538,-1460.82,0.0001266,2]
[346783157,1735285843547,-500.0,0.0001266,2]
[346783159,1735285843557,-500.0,0.0001266,2]
[346783161,1735285843567,-677.85,0.0001266,2]
[346783163,1735285843578,-500.0,0.0001266,2]
[346783165,1735285843587,-477.76928055,0.0001266,2]
[346783167,1735285843597,-500.0,0.0001266,2]
[346783169,1735285843607,-500.42173338,0.0001266,2]
[346783171,1735285843616,-500.0,0.0001266,2]
[346783173,1735285843625,-500.22092709,0.0001266,2]
[346783175,1735285843635,-1133.28,0.0001266,2]
[346783177,1735285843643,-645.87,0.0001266,2]
[346783179,1735285843653,-500.0,0.0001266,2]
[346783181,1735285843662,-500.0,0.0001266,2]
[346783183,1735285843671,-642.19,0.0001266,2]
[346783185,1735285843682,-708.55,0.0001266,2]
[346783187,1735285843691,-500.0,0.0001266,2]
[346783189,1735285843700,-500.0,0.0001266,2]
[346783191,1735285843709,-500.0,0.0001266,2]
[346783193,1735285843719,-500.0,0.0001266,2]
[346783195,1735285843728,-500.0,0.0001266,2]
[346783197,1735285843741,-500.0,0.0001266,2]
[346783199,1735285843751,-500.0,0.0001266,2]
[346783201,1735285843760,-571.1,0.0001266,2]
[346783203,1735285843769,-500.0,0.0001266,2]
[346783205,1735285843779,-500.0,0.0001266,2]
[346783207,1735285843788,-500.0,0.0001266,2]
[346783208,1735285843798,-740.65,0.0001266,2]
[346783209,1735285843807,-467.09790978,0.0001266,2]
[346783210,1735285843818,-500.0,0.0001266,2]
[346783211,1735285843828,-697.91,0.0001266,2]
[346783212,1735285843837,-225.45486759,0.0001266,2]
[346783213,1735285843846,-1026.39,0.0001266,2]
[346783214,1735285843856,-502.26190824,0.0001266,2]
[346783215,1735285843865,-500.0,0.0001266,2]
[346783216,1735285843874,-973.55,0.0001266,2]
[346783217,1735285843883,-591.65,0.0001266,2]
[346783219,1735285843892,-500.0,0.0001266,2]
[346783220,1735285843902,-500.0,0.0001266,2]
[346783222,1735285843911,-699.95,0.0001266,2]
[346783224,1735285843921,-500.0,0.0001266,2]
[346783226,1735285843930,-500.0,0.0001266,2]
[346783228,1735285843941,-500.0,0.0001266,2]
[346783230,1735285843950,-500.0,0.0001266,2]
[346783232,1735285843960,-2817.28,0.0001266,2]
[346783234,1735285843970,-500.0,0.0001266,2]
[346783236,1735285843979,-1294.14,0.0001266,2]
[346783238,1735285843989,-500.0,0.0001266,2]
[346783240,1735285843998,-493.5,0.0001266,2]
[346783242,1735285844007,-1268.75,0.0001266,2]
[346783244,1735285844017,-500.0,0.0001266,2]
[346783246,1735285844026,-500.0,0.0001266,2]
[346783248,1735285844037,-500.0,0.0001266,2]
[346783250,1735285844046,-644.73,0.0001266,2]
[346783252,1735285844055,-500.0,0.0001266,2]
[346783254,1735285844065,-1831.72,0.0001266,2]
[346783256,1735285844075,-500.0,0.0001266,2]
[346783258,1735285844084,-657.49,0.0001266,2]
[346783260,1735285844094,-889.9,0.0001266,2]
[346783262,1735285844104,-553.51,0.0001266,2]
[346783264,1735285844113,-1082.72,0.0001266,2]
[346783266,1735285844123,-998.34,0.0001266,2]
[346783268,1735285844132,-514.01,0.0001266,2]
[346783270,1735285844142,-500.0,0.0001266,2]
[346783272,1735285844151,-500.0,0.0001266,2]
[346783274,1735285844161,-500.0,0.0001266,2]
[346783276,1735285844171,-587.83,0.0001266,2]
[346783278,1735285844182,-500.0,0.0001266,2]
[346783280,1735285844192,-992.26,0.0001266,2]
[346783282,1735285844201,-1052.76,0.0001266,2]
[346783284,1735285844211,-500.0,0.0001266,2]
[346783286,1735285844220,-674.11,0.0001266,2]
[346783288,1735285844229,-500.0,0.0001266,2]
[346783290,1735285844238,-500.0,0.0001266,2]
[346783292,1735285844248,-501.6,0.0001266,2]
[346783294,1735285844257,-500.0,0.0001266,2]
[346783296,1735285844267,-712.59,0.0001266,2]
[346783298,1735285844276,-15170.74,0.0001266,2]
[346783300,1735285844285,-500.0,0.0001266,2]
[346783302,1735285844294,-500.0,0.0001266,2]
[346783304,1735285844304,-637.42,0.0001266,2]
[346783306,1735285844312,-500.0,0.0001266,2]
[346783308,1735285844322,-658.97,0.0001266,2]
[346783310,1735285844331,-500.0,0.0001266,2]
[346783312,1735285844340,-3361.93,0.0001266,2]
[346783314,1735285844349,-500.0,0.0001266,2]
[346783316,1735285844358,-500.0,0.0001266,2]
[346783317,1735285844368,-602.37,0.0001266,2]
[346783319,1735285844377,-500.0,0.0001266,2]
[346783322,1735285844387,-702.82,0.0001266,2]
[346783324,1735285844397,-787.41,0.0001266,2]
[346783325,1735285844406,-500.0,0.0001266,2]
[346783327,1735285844415,-873.58,0.0001266,2]
[346783329,1735285844424,-500.0,0.0001266,2]
[346783331,1735285844435,-500.0,0.0001266,2]
[346783333,1735285844444,-702.59,0.0001266,2]
[346783335,1735285844453,-500.0,0.0001266,2]
[346783337,1735285844463,-500.0,0.0001266,2]
[346783339,1735285844471,-500.0,0.0001266,2]
[346783341,1735285844481,-500.0,0.0001266,2]
[346783343,1735285844490,-500.0,0.0001266,2]
[346783345,1735285844499,-885.73,0.0001266,2]
[346783347,1735285844508,-500.0,0.0001266,2]
[346783349,1735285844518,-500.0,0.0001266,2]
[346783351,1735285844527,-1056.97,0.0001266,2]
[346783353,1735285844536,-500.0,0.0001266,2]
[346783355,1735285844545,-641.85,0.0001266,2]
[346783357,1735285844555,-500.0,0.0001266,2]
[346783359,1735285844564,-564.04,0.0001266,2]
[346783362,1735285844580,-500.0,0.0001266,2]
[346783364,1735285844590,-500.0,0.0001266,2]
[346783366,1735285844599,-646.68,0.0001266,2]
[346783368,1735285844608,-878.24,0.0001266,2]
[346783370,1735285844618,-500.0,0.0001266,2]
[346783372,1735285844627,-4394.5,0.0001266,2]
[346783374,1735285844636,-816.15,0.0001266,2]
[346783376,1735285844646,-500.0,0.0001266,2]
[346783378,1735285844655,-707.81,0.0001266,2]
[346783380,1735285844664,-772.88,0.0001266,2]
[346783382,1735285844674,-500.0,0.0001266,2]
[346783384,1735285844684,-627.05,0.0001266,2]
[346783385,1735285844694,-960.21,0.0001266,2]
[346783388,1735285844703,-500.0,0.0001266,2]
[346783390,1735285844713,-2458.56,0.0001266,2]
[346783392,1735285844722,-500.0,0.0001266,2]
[346783394,1735285844731,-610.23,0.0001266,2]
[346783396,1735285844740,-885.14,0.0001266,2]
[346783399,1735285844749,-500.0,0.0001266,2]
[346783400,1735285844758,-1131.24,0.0001266,2]
[346783404,1735285844768,-500.0,0.0001266,2]
[346783407,1735285844778,-945.7,0.0001266,2]
[346783410,1735285844787,-681.47,0.0001266,2]
[346783412,1735285844796,-500.0,0.0001266,2]
[346783414,1735285844805,-1045.26,0.0001266,2]
[346783416,1735285844814,-726.66,0.0001266,2]
[346783418,1735285844824,-528.1,0.0001266,2]
[346783420,1735285844833,-4692.0,0.0001266,2]
[346783422,1735285844842,-996.66,0.0001266,2]
[346783424,1735285844851,-500.0,0.0001266,2]
[346783426,1735285844861,-682.54,0.0001266,2]
[346783428,1735285844870,-500.0,0.0001266,2]
[346783430,1735285844879,-500.0,0.0001266,2]
[346783432,1735285844889,-1205.63,0.0001266,2]
[346783434,1735285844898,-500.0,0.0001266,2]
[346783436,1735285844907,-500.0,0.0001266,2]
[346783439,1735285844918,-567.38,0.0001266,2]
[346783441,1735285844928,-500.0,0.0001266,2]
[346783443,1735285844938,-685.87,0.0001266,2]
[346783445,1735285844948,-1283.37,0.0001266,2]
[346783447,1735285844957,-500.0,0.0001266,2]
[346783448,1735285844966,-500.0,0.0001266,2]
[346783450,1735285844975,-500.0,0.0001266,2]
[346783452,1735285844984,-524.02,0.0001266,2]
[346783454,1735285844994,-500.0,0.0001266,2]
[346783456,1735285845006,-500.0,0.0001266,2]
[346783458,1735285845015,-500.0,0.0001266,2]
[346783460,1735285845025,-531.74,0.0001266,2]
[346783462,1735285845034,-500.0,0.0001266,2]
[346783464,1735285845044,-651.41,0.0001266,2]
[346783466,1735285845056,-500.0,0.0001266,2]
[346783468,1735285845066,-500.0,0.0001266,2]
[346783470,1735285845075,-500.0,0.0001266,2]
[346783472,1735285845086,-672.41,0.0001266,2]
[346783474,1735285845096,-778.09,0.0001266,2]
[346783476,1735285845105,-1149.33,0.0001266,2]
[346783478,1735285845115,-736.97,0.0001266,2]
[346783480,1735285845124,-572.21,0.0001266,2]
[346783482,1735285845134,-500.0,0.0001266,2]
[346783484,1735285845143,-500.0,0.0001266,2]
[346783486,1735285845153,-500.0,0.0001266,2]
[346783488,1735285845162,-2673.22,0.0001266,2]
[346783490,1735285845171,-500.0,0.0001266,2]
[346783492,1735285845181,-521.04,0.0001266,2]
[346783494,1735285845191,-869.78,0.0001266,2]
[346783496,1735285845200,-500.0,0.0001266,2]
[346783498,1735285845210,-981.96,0.0001266,2]
[346783500,1735285845219,-500.0,0.0001266,2]
[346783502,1735285845230,-500.0,0.0001266,2]
[346783504,1735285845239,-500.0,0.0001266,2]
[346783506,1735285845247,-7362.94,0.0001266,2]
[346783508,1735285845256,-900.47,0.0001266,2]
[346783510,1735285845266,-2506.04,0.0001266,2]
[346783512,1735285845275,-518.85,0.0001266,2]
[346783514,1735285845285,-500.0,0.0001266,2]
[346783516,1735285845294,-500.0,0.0001266,2]
[346783518,1735285845304,-500.0,0.0001266,2]
[346783519,1735285845313,-500.0,0.0001266,2]
[346783521,1735285845322,-500.0,0.0001266,2]
[346783523,1735285845332,-500.0,0.0001266,2]
[346783525,1735285845341,-500.0,0.0001266,2]
[346783527,1735285845350,-4198.8,0.0001266,2]
[346783529,1735285845359,-500.0,0.0001266,2]
[346783532,1735285845370,-4552.93,0.0001266,2]
[346783534,1735285845379,-500.0,0.0001266,2]
[346783536,1735285845388,-568.75,0.0001266,2]
[346783538,1735285845399,-500.0,0.0001266,2]
[346783540,1735285845409,-595.52,0.0001266,2]
[346783542,1735285845418,-500.0,0.0001266,2]
[346783544,1735285845427,-547.58,0.0001266,2]
[346783546,1735285845438,-611.78,0.0001266,2]
[346783548,1735285845447,-500.0,0.0001266,2]
[346783550,1735285845456,-4272.11,0.0001266,2]
[346783552,1735285845465,-500.0,0.0001266,2]
[346783554,1735285845475,-18331.25,0.0001266,2]
[346783556,1735285845484,-500.0,0.0001266,2]
[346783558,1735285845494,-732.42,0.0001266,2]
[346783560,1735285845503,-500.0,0.0001266,2]
[346783562,1735285845512,-233.59530754,0.0001266,2]
[346783564,1735285845521,-500.0,0.0001266,2]
[346783566,1735285845531,-506.03781637,0.0001266,2]
[346783568,1735285845541,-500.0,0.0001266,2]
[346783570,1735285845550,-500.0,0.0001266,2]
[346783572,1735285845559,-500.0,0.0001266,2]
[346783574,1735285845568,-500.0,0.0001266,2]
[346783576,1735285845577,-1502.5,0.0001266,2]
[346783578,1735285845587,-500.0,0.0001266,2]
[346783580,1735285845596,-500.0,0.0001266,2]
[346783582,1735285845606,-506.89322067,0.0001266,2]
[346783584,1735285845615,-1552.94,0.00012661,2]
[346783586,1735285845624,-1249.59,0.00012661,2]
[346783588,1735285845633,-500.0,0.00012661,2]
[346783590,1735285845642,-500.0,0.00012661,2]
[346783592,1735285845651,-734.22,0.00012661,2]
[346783594,1735285845660,-654.62,0.00012661,2]
[346783596,1735285845669,-500.0,0.00012661,2]
[346783598,1735285845678,-500.0,0.00012661,2]
[346783599,1735285845688,-500.0,0.00012661,2]
[346783601,1735285845697,-1029.97,0.00012661,2]
[346783603,1735285845707,-500.0,0.00012661,2]
[346783605,1735285845716,-543.64,0.00012661,2]
[346783607,1735285845725,-681.47,0.00012661,2]
[346783609,1735285845736,-1118.63,0.00012661,2]
[346783611,1735285845748,-721.07,0.00012661,2]
[346783612,1735285845757,-638.4,0.00012661,2]
[346783613,1735285845767,-728.22,0.00012661,2]
[346783614,1735285845776,-500.0,0.00012661,2]
[346783615,1735285845786,-1253.99,0.00012661,2]
[346783616,1735285845796,-817.27,0.00012661,2]
[346783632,1735285846017,-997.03,0.00012661,2]
[346783633,1735285846028,-500.0,0.00012661,2]
[346783634,1735285846038,-1245.7,0.00012661,2]
[346783635,1735285846048,-500.0,0.00012661,2]
[346783636,1735285846058,-1260.31,0.00012661,2]
[346783638,1735285846067,-500.0,0.00012661,2]
[346783640,1735285846077,-644.55,0.00012661,2]
[346783642,1735285846086,-930.12,0.00012661,2]
[346783644,1735285846096,-682.36,0.00012661,2]
[346783646,1735285846105,-772.88,0.00012661,2]
[346783648,1735285846115,-500.0,0.00012661,2]
[346783650,1735285846125,-944.09,0.00012661,2]
[346783652,1735285846134,-500.0,0.00012661,2]
[346783654,1735285846144,-1144.66,0.00012661,2]
[346783656,1735285846153,-513.19,0.00012661,2]
[346783658,1735285846162,-955.1,0.00012661,2]
[346783659,1735285846172,-500.0,0.00012661,2]
[346783660,1735285846183,-1572.22,0.00012661,2]
[346783661,1735285846193,-696.38,0.00012661,2]
[346783662,1735285846202,-746.7,0.00012661,2]
[346783663,1735285846212,-500.0,0.00012661,2]
[346783664,1735285846222,-600.48,0.00012661,2]
[346783665,1735285846231,-1199.04,0.00012661,2]
[346783666,1735285846241,-500.0,0.00012661,2]
[346783667,1735285846250,-500.0,0.00012661,2]
[346783668,1735285846260,-573.99,0.00012661,2]
[346783669,1735285846269,-500.0,0.00012661,2]
[346783670,1735285846279,-12415.95,0.00012661,2]
[346783671,1735285846288,-679.06,0.00012662,2]
[346783672,1735285846298,-500.0,0.00012662,2]
[346783673,1735285846313,-500.0,0.00012662,2]
[346783674,1735285846323,-500.0,0.00012662,2]
[346783675,1735285846334,-205.05387204,0.00012662,2]
[346783676,1735285846344,-500.0,0.00012662,2]
[346783677,1735285846353,-882.38,0.00012662,2]
[346783678,1735285846363,-512.58,0.00012662,2]
[346783679,1735285846372,-500.0,0.00012662,2]
[346783680,1735285846381,-783.36,0.00012662,2]
[346783681,1735285846391,-500.0,0.00012662,2]
[346783682,1735285846400,-500.0,0.00012662,2]
[346783683,1735285846411,-500.0,0.00012662,2]
[346783684,1735285846421,-546.01,0.00012662,2]
[346783685,1735285846430,-574.26,0.00012662,2]
[346783686,1735285846446,-3366.94,0.00012662,2]
[346783687,1735285846455,-3366.94,0.00012662,2]
[346783688,1735285846466,-1063.63,0.00012662,2]
[346783689,1735285846476,-500.0,0.00012662,2]
[346783690,1735285846486,-500.0,0.00012662,2]
[346783691,1735285846496,-500.0,0.00012662,2]
[346783692,1735285846507,-500.0,0.00012662,2]
[346783693,1735285846517,-17829.11,0.00012662,2]
[346783694,1735285846526,-650.58,0.00012662,2]
[346783695,1735285846537,-500.0,0.00012662,2]
[346783696,1735285846547,-606.62,0.00012662,2]
[346783697,1735285846557,-500.0,0.00012662,2]
[346783698,1735285846567,-525.72,0.00012662,2]
[346783699,1735285846578,-626.17,0.00012662,2]
[346783700,1735285846587,-919.54,0.00012662,2]
[346783701,1735285846596,-396.33369759,0.00012662,2]
[346783702,1735285846606,-500.0,0.00012662,2]
[346783703,1735285846615,-534.58,0.00012662,2]
[346783704,1735285846624,-500.0,0.00012662,2]
[346783705,1735285846634,-636.26,0.00012662,2]
[346783706,1735285846643,-500.0,0.00012662,2]
[346783707,1735285846652,-500.0,0.00012662,2]
[346783708,1735285846662,-520.01268288,0.00012662,2]
[346783709,1735285846671,-657.55,0.00012662,2]
[346783710,1735285846682,-487.32033253,0.00012662,2]
[346783711,1735285846693,-500.0,0.00012662,2]
[346783712,1735285846702,-2194.24,0.00012662,2]
[346783713,1735285846712,-2435.33,0.00012662,2]
[346783714,1735285846722,-3846.79,0.00012662,2]
[346783715,1735285846733,-3495.96,0.00012662,2]
[346783716,1735285846746,-6314.27,0.00012662,2]
[346783717,1735285846756,-3182.74,0.00012662,2]
[346783718,1735285846766,-772.88,0.00012662,2]
[346783719,1735285846775,-1305.23,0.00012662,2]
[346783720,1735285846786,-1985.95,0.00012662,2]
[346783721,1735285846795,-11777.93,0.00012662,2]
[346783722,1735285846805,-500.0,0.00012662,2]
[346783723,1735285846816,-2965.57,0.00012662,2]
[346783724,1735285846825,-500.0,0.00012662,2]
[346783725,1735285846834,-3622.99,0.00012662,2]
[346783726,1735285846844,-4311.35,0.00012662,2]
[346783727,1735285846853,-723.88,0.00012662,2]
[346783728,1735285846863,-20089.33,0.00012662,2]
[346783729,1735285846873,-5543.75,0.00012662,2]